Cogmind - Beta 13 @@@ ROGUE MODE // 2024.04.02 @ 09:30:38 Player: The Erv Meister Result: Self-destructed Performance ------------- Evolutions (2) 1000 Regions Visited (3) 600 Robots Destroyed (37) 185 Value Destroyed (772) 772 Prototype IDs (1) 20 Alien Tech Used (0) 0 Bonus (0) 0 TOTAL SCORE: 2577 Bonus ------- None Cogmind --------- Core Integrity 484/550 Matter 10/300 Energy 280/280 System Corruption 0% Temperature Cool (9) Movement Treading (240) Ox1 Location -8/Materials Parts ------- > --- POWER (2) -------- Cooled Ion Engine > --- PROPULSION (3) --- Improved Treads Wheel > --- UTILITY (3) ------ Large Storage Unit Trap Scanner Terrain Scanner > --- WEAPON (3) ------- Rocket Launcher > --- INVENTORY (15) --- Wheel Large Storage Unit Small Matter Pod (0) Small Matter Pod (0) Large Matter Pod (0) High-capacity Matter Pod (0) Structural Scanner Light Armor Plating Improved Datajack Peak State ------------ > --- POWER ------------ Cooled Ion Engine > --- PROPULSION ------- Improved Treads Advanced Treads Wheel > --- UTILITY ---------- Large Storage Unit Trap Scanner Terrain Scanner > --- WEAPON ----------- Light Assault Rifle Rocket Launcher Rocket Launcher > --- INVENTORY -------- Wheel Large Storage Unit Small Matter Pod Small Matter Pod Large Matter Pod High-capacity Matter Pod Structural Scanner Light Armor Plating Improved Datajack [Rating: 20] Favorites ----------- Power Light Ion Engine Engine Light Ion Engine Propulsion Light Treads Treads Light Treads Wheel Wheel Utility High-capacity Battery Device Terrain Scanner Storage High-capacity Battery Processor Terrain Scan Processor Protection Light Armor Plating Weapon Rocket Launcher Energy Gun Small Laser Ballistic Gun Light Assault Rifle Launcher Rocket Launcher Build | -11 -10 -9 -8 ------- Run | Yrd Mat Mat Mat Slots Evolved 4 | . . 2 2 Power 1 | . . . 1 Propulsion 1 | . . . 1 Utility 1 | . . 1 . Weapon 1 | . . 1 . Parts Attached 36 | 6 4 17 9 Power 5 | 1 . 3 1 Engine 5 | 1 . 3 1 Core . | . . . . Reactor . | . . . . Propulsion 7 | 2 . 2 3 Treads 4 | 2 . . 2 Leg . | . . . . Wheel 3 | . . 2 1 Hover . | . . . . Flight . | . . . . Utility 10 | 1 2 4 3 Device 3 | . . 1 2 Storage 5 | 1 2 2 . Processor 1 | . . . 1 Hackware . | . . . . Protection 1 | . . 1 . Artifact . | . . . . Weapon 14 | 2 2 8 2 Energy Gun 1 | 1 . . . Energy Cannon . | . . . . Ballistic Gun 5 | 1 1 3 . Ballistic Cannon . | . . . . Launcher 8 | . 1 5 2 Special Weapon . | . . . . Impact Weapon . | . . . . Slashing Weapon . | . . . . Piercing Weapon . | . . . . Special Melee Weapon . | . . . . Unidentified Prototypes . | . . . . Parts Lost 13 | . . 7 6 Power 3 | . . 2 1 Propulsion 3 | . . 2 1 Utility 1 | . . 1 . Weapon 6 | . . 2 4 Highest Loss Streak 6 | . . 6 4 To Critical Strikes . | . . . . Average Slot Usage (%) 87 | . 93 82 89 Engine 11 | . 14 7 14 Treads 16 | . 28 9 8 Wheel 5 | . . 7 14 Device 2 | . . 1 16 Storage 20 | . 21 22 9 Protection 1 | . . 3 . Energy Gun 7 | . 14 4 . Ballistic Gun 9 | . 9 10 9 Launcher 11 | . 4 16 17 Naked Turns . | . . . . Heaviest Build 45 | 10 21 44 45 Greatest Support 45 | 40 40 40 45 Greatest Overweight (x) 11 | 1 . 11 4 Average Overweight (x) . | . . 1 1 Largest Inventory Capacity 15 | 8 10 15 15 Average Capacity 11 | 7 8 14 15 Most Carried 13 | 3 4 13 12 Average Carried 5 | . 2 7 8 Final Capacity 15 | 8 10 15 15 Final Carried 12 | 1 3 12 9 Class Distribution -------------------- 48% | Mutant 22% | Gunner 15% | Skirmisher 11% | Tank Dominant Class ---------------- Mutant | -10/Materials Gunner | -9/Materials Skirmisher | -8/Materials Resources | -11 -10 -9 -8 ----------- Run | Yrd Mat Mat Mat Matter Collected 801 | 181 66 545 9 Remotely . | . . . . Salvage Created 549 | . 152 247 150 Parts 52 | . 19 21 12 Haulers Intercepted 3 | . 1 1 1 Recyclers Shooed 3 | . . 2 1 Parts Field Recycled . | . . . . Retrieved Matter . | . . . . Parts Self-Destructed . | . . . . Prevented . | . . . . Kills | -11 -10 -9 -8 ------- Run | Yrd Mat Mat Mat Combat Hostiles Destroyed 17 | . 5 9 3 Guns 3 | . 2 1 . AOE 14 | . 3 8 3 Classes Destroyed 11 | . 5 4 2 Worker 3 | . . . 3 Builder 5 | . 3 1 1 Tunneler 3 | . . 2 1 Hauler 3 | . 1 1 1 Mechanic 1 | . . 1 . Operator 2 | . . 1 1 Watcher 3 | . 1 1 1 Swarmer 6 | . 3 3 . Grunt 6 | . 2 2 2 Sentry 4 | . . 4 . Hunter 1 | . . . 1 Best Kill Streak 7 | . 6 4 7 Combat Bots Only 3 | . 3 3 2 Max Kills in Single Turn 4 | . 2 4 3 Gunslinging . | . . . . Exploded 3 | . 1 3 1 Melee . | . . . . Uniques/NPCs Destroyed . | . . . . Combat | -11 -10 -9 -8 -------- Run | Yrd Mat Mat Mat Hostile Shots Fired 150 | . 25 85 40 Missed 45 | . 8 25 12 Damage Taken 1781 | . 246 986 549 Core 332 | . 52 214 66 Absorbed by Shields . | . . . . Core Remaining (%) 75 | 100 79 46 . Volleys Fired 62 | . 19 25 18 Largest 3 | . 2 3 3 Hottest 93 | . 70 93 86 Shots Fired 127 | . 37 63 27 Gun 76 | . 27 37 12 Cannon . | . . . . Launcher 51 | . 10 26 15 Special . | . . . . Kinetic 46 | . 8 26 12 Thermal 30 | . 19 11 . Explosive 51 | . 10 26 15 Electromagnetic . | . . . . Robot Hit Streak 6 | . 6 5 6 Robot Miss Streak 4 | . 4 4 3 Penetration Max . | . . . . Secondary Targets . | . . . . Shots Hit Robots 66 | . 19 28 19 Core Hits 64 | . 13 30 21 Critical Kills . | . . . . Critical Parts Destroyed . | . . . . Critical Strikes . | . . . . Melee Attacks . | . . . . Impact . | . . . . Slashing . | . . . . Piercing . | . . . . Sneak Attacks . | . . . . Combat Hostiles . | . . . . Follow-up Attacks . | . . . . Damage Inflicted 2907 | . 646 1123 1138 Guns 451 | . 167 194 90 Cannons . | . . . . Explosions 2397 | . 475 879 1043 Melee . | . . . . Ramming 59 | . 4 50 5 Kinetic 261 | . 22 149 90 Thermal 435 | . 279 156 . Explosive 2152 | . 341 768 1043 Electromagnetic . | . . . . Impact . | . . . . Slashing . | . . . . Piercing . | . . . . Highest Corruption 2 | . . 2 . Average Corruption 2 | . . 2 . Corruption Purged . | . . . . Corruption Blocked . | . . . . Overload Shots . | . . . . Overflow Damage 28 | . 12 10 6 Projectiles . | . . . . Explosions 28 | . 12 10 6 Melee . | . . . . Knockbacks . | . . . . Impact . | . . . . Kinetic . | . . . . Secondary . | . . . . Self-Inflicted Damage 370 | . 90 201 79 Shots 14 | . 4 7 3 Rammed 13 | . 2 10 1 Targets Rammed 13 | . 2 10 1 Kicked . | . . . . Crushed . | . . . . Highest Temperature 137 | . 63 137 23 Average Temperature 27 | . 22 37 8 Received Heat Transfer 582 | . 48 363 171 Siege Activations . | . . . . Robots Corrupted . | . . . . Combat Hostiles . | . . . . Parts Fried . | . . . . Impact Corruptions . | . . . . Robots Melted . | . . . . Combat Hostiles . | . . . . Parts Melted . | . . . . Heat Transferred 575 | . 425 150 . Parts Sabotaged . | . . . . Parts Stolen . | . . . . Parts Stripped . | . . . . Power Chain Reactions . | . . . . Alert | -11 -10 -9 -8 ------- Run | Yrd Mat Mat Mat Peak Influence 316 | . 271 316 293 Initial 133 | . . 33 133 Average 131 | . 98 157 207 Maximum Alert Level 1 | . 1 1 1 Low Security (%) 68 | 100 71 62 57 Level 1 31 | . 28 37 42 Level 2 . | . . . . Level 3 . | . . . . Level 4 . | . . . . Level 5 . | . . . . High Security . | . . . . Max Security . | . . . . Squads Dispatched 5 | . 1 1 3 Investigation 1 | . . . 1 Extermination . | . . . . Reinforcement 4 | . 1 1 2 Assault . | . . . . Garrison . | . . . . Intercept . | . . . . Searches Triggered . | . . . . Construction Impeded 1 | . . . 1 Haulers Reinforced . | . . . . Active Scanning Responses . | . . . . Cargo Convoy Interrupts . | . . . . Stealth | -11 -10 -9 -8 --------- Run | Yrd Mat Mat Mat Distress Signals 3 | . 1 1 1 Communications Jammed . | . . . . Distress Signals . | . . . . Times Spotted 36 | . 9 13 14 Peak Tracking Total 8 | . 5 4 8 Tactical Retreats . | . . . . Traps | -11 -10 -9 -8 ------- Run | Yrd Mat Mat Mat Traps Triggered 1 | . . . 1 Indirectly . | . . . . Trap Hack Attempts . | . . . . Triggered . | . . . . Disarmed . | . . . . Reprogrammed . | . . . . Reused . | . . . . Traps Extracted . | . . . . Installed . | . . . . Triggered . | . . . . Machines | -11 -10 -9 -8 ---------- Run | Yrd Mat Mat Mat Machines Disabled 9 | . 3 5 1 Max in Single Turn 3 | . 3 2 1 Machines Repaired . | . . . . Machines Dismantled . | . . . . Machines Sabotaged . | . . . . Overloaded Fab Kills . | . . . . Hacking | -11 -10 -9 -8 --------- Run | Yrd Mat Mat Mat Machines Accessed 2 | . . 2 . Terminals 1 | . . 1 . Fabricators . | . . . . Repair Stations . | . . . . Recycling Units . | . . . . Scanalyzers 1 | . . 1 . Garrison Access . | . . . . Total Hacks 8 | . . 8 . Successful 5 | . . 5 . Failed 3 | . . 3 . Catastrophic . | . . . . Database Lockouts . | . . . . Manual . | . . . . Terminals 5 | . . 5 . Fabricators . | . . . . Repair Stations . | . . . . Recycling Units . | . . . . Scanalyzers 3 | . . 3 . Garrison Access . | . . . . Terminal Hacks 4 | . . 4 . Record 1 | . . 1 . Alert Level 1 | . . 1 . Dispatch Records 1 | . . 1 . Zone Layout 1 | . . 1 . Fabricator Hacks . | . . . . Repair Station Hacks . | . . . . Recycling Unit Hacks . | . . . . Scanalyzer 1 | . . 1 . Insert Component 1 | . . 1 . Garrison Access Hacks . | . . . . Unauthorized Hacks . | . . . . Terminals . | . . . . Fabricators . | . . . . Repair Stations . | . . . . Recycling Units . | . . . . Scanalyzers . | . . . . Garrison Access . | . . . . Data Cores Recovered . | . . . . Used . | . . . . Hacking Detections 2 | . . 2 . Full Trace Events . | . . . . Feedback Events . | . . . . Feedback Blocked . | . . . . Robot Schematics Acquired . | . . . . Robots Built . | . . . . Authchips . | . . . . Time . | . . . . Total Robot Build Rating . | . . . . Part Schematics Acquired . | . . . . Parts Built . | . . . . Authchips . | . . . . Time . | . . . . Total Part Build Rating . | . . . . Parts Repaired . | . . . . Time . | . . . . Parts Recycled . | . . . . Recycled Matter . | . . . . Retrieved Matter . | . . . . Retrieved Components . | . . . . Parts Scanalyzed . | . . . . Part Schematics Acquired . | . . . . Parts Damaged . | . . . . Bothacking | -11 -10 -9 -8 ------------ Run | Yrd Mat Mat Mat Used RIF Installer . | . . . . Robots Hacked . | . . . . Non-combat . | . . . . Combat . | . . . . Robot Hacks Applied . | . . . . Relay Couplers Released . | . . . . Fabnet Peak Effective % . | . . . . Robots Rewired . | . . . . Allies Hacked . | . . . . Hacks Repelled . | . . . . Allies | -11 -10 -9 -8 -------- Run | Yrd Mat Mat Mat Total Allies . | . . . . Largest Group . | . . . . Highest-Rated Group . | . . . . Highest-Rated Ally . | . . . . Total Orders . | . . . . Ally Attacks . | . . . . Total Damage . | . . . . Kills . | . . . . Allies Corrupted . | . . . . Allies Melted . | . . . . Intel | -11 -10 -9 -8 ------- Run | Yrd Mat Mat Mat Robot Analysis Total . | . . . . Derelict Logs Recovered . | . . . . Drone Launches . | . . . . Drone Recoveries . | . . . . Exploration | -11 -10 -9 -8 ------------- Run | Yrd Mat Mat Mat Turns Passed 1464 | 91 570 618 185 Spaces Moved 782 | 54 306 312 110 Core 33 | 10 . 23 . Treads 478 | 44 306 120 8 Legs . | . . . . Wheels 271 | . . 169 102 Hover . | . . . . Flight . | . . . . Fastest Speed 50 | 50 160 95 95 Average Speed 151 | 146 160 157 112 Slowest Speed 600 | 160 160 600 152 Overloaded Moves . | . . . . Propulsion Burnouts . | . . . . Robots Hopped . | . . . . Cave-ins Triggered . | . . . . Exploration Rate (%) 21 | 4 36 30 15 Regions Visited 3 Branch Regions . Pre-discovered Areas . | . . . . Known Exits Taken . | . . . . Unknown Exits Taken 3 | 1 1 1 . Scrap Searched . | . . . . Spaces Dug . | . . . . Terrain Destroyed 293 | . 84 153 56 Melee . | . . . . Projectile . | . . . . AOE 293 | . 84 153 56 Terrain Rammed . | . . . . Walls Destroyed . | . . . . Machines Disabled . | . . . . Actions | -11 -10 -9 -8 --------- Run | Yrd Mat Mat Mat Total 945 | 66 349 383 147 Wait 14 | . 14 . . Move 779 | 53 305 311 110 Hop . | . . . . Pick Up 36 | 7 4 19 6 Fast Attach . | . . . . Attach 22 | 6 1 10 5 Detach . | . . . . Swap 14 | . 3 7 4 Drop 5 | . 1 1 3 Fire 62 | . 19 25 18 Melee . | . . . . Ram 8 | . . 7 1 Kick . | . . . . Crush 5 | . 2 3 . Escape Stasis . | . . . . Rewire . | . . . . Trap . | . . . . Miscellaneous . | . . . . Route ------- -11/Scrapyard -10/Materials -9/Materials -8/Materials History --------- Turn | Location | Event 8 | -11/Scrapyard | Discovered new exit (range 15) 92 | -11/Scrapyard | Entered Materials 302 | -10/Materials | Build established: Mutant 465 | -10/Materials | Discovered new exit (range 8) 662 | -10/Materials | Entered another Materials area 662 | -9/Materials | Evolved 2 slots: Utility x1, Weapon x1 958 | -9/Materials | Lost 6 parts (1p2n1u2w) 1132 | -9/Materials | Discovered new exit (range 15) 1175 | -9/Materials | Core integrity fell below 50% 1280 | -9/Materials | Entered another Materials area 1280 | -8/Materials | Evolved 2 slots: Power x1, Propulsion x1 1424 | -8/Materials | Lost 4 parts (1p1n2w) 1465 | -8/Materials | Self-destructed Last Messages --------------- U-05 Engineer builds a Wall. U-05 Engineer lays Concrete. U-05 Engineer builds a Wall. U-05 Engineer lays Concrete. K-01 Serf collects debris. R-06 Scavenger collects Assault Rifle. K-01 Serf collects debris. U-05 Engineer lays Concrete. K-01 Serf collects debris. U-05 Engineer builds a Wall. U-05 Engineer lays Concrete. Triggered Alarm Trap. An alarm sounds. ALERT: Alarm triggered, dispatching investigation squad. Acquired Adv. Treads. W-25 Informer sends out distress signal. Adv. Treads severed. Rocket Launcher destroyed. Lgt. Assault Rifle destroyed. Map ----- +----------------------------------------------------+ | ?????????????? """"" ???? | | ?????????????? ""T"" !######????? | | ???????????????####### # ^ #?#???????? | | ????????????????????# # ^^^ #?????????? | | ???????????????????## # ! ##????????? | | ???????????????????# # #????????? | | ???????????????????## # ##???????? | | ????????????????# # ##??????? | | ????????????????# "S # # # % ##???????? | | ??????????????????""" # # !! #????????? | | ?????????????????? "" # # ! | # #?#?????? | | ??????????????????? ?# # !!! #???????? | | ??????????????????? ???# # # ###???????? | | ??????????"" ######+### # # ??????? | | ??????????"" # #? #### ???? | | ???????? w #?? ##????????? | | ???????? # #???#?????????? | | ?????????# #######+###g # #?????????????? | | ????????????????????? # # #?????????????? | | ????????????????? ????#k # [ #? ???????????? | | ???????????????????????# #########?????????????? | | ???????????????????????# ######### ? ??????????? | | ???????????????????? ??# # #?????????????? | | ????????????????? ?????# # """ #? ???????????? | | ???????????????????????# w/ """ #?????????????? | | ??????????????????????## @ # """ #?????????????? | | ???????????????????????# lh# #?????????????? | | ???????????????????????# g#########?????????????? | | ?????????????????????? g ? ??????????????????? | | ????????????????????? ??? ????????????????? | | ???????????????????? ???????????????????? | | ???????????????????#+######+##???????? ??????????? | | ?????????????????? ?????? ?????????????????????? | | ?????????????????+ ??????? ????????????????????? | | ?????????????????# ????????! ???#????????????????? | | ?????????????????#???????????????????????????????? | | ??????????????????????? ?????????????????????????? | | ?????????????????????????? ??????????????????????? | | ????????????????????#????????????#???????????????? | | ?????????????????????????????????????????????????? | | ?????????????????????????????????????????????????? | | ?????????????????????????????????????????????????? | | ?????????????????????????????????????????????????? | | ?????????????????????????????????????????????????? | | ?????????????????????????????????????????????????? | | ?????????????????????????????????????????????????? | | ?????????????????????????????????????????????????? | | ?????????????????????????????????????????????????? | | ?????????????????????????????????????????????????? | | ?????????????????????????????????????????????????? | +----------------------------------------------------+ Best States ------------- Heat Dissipation 31 Energy Generation 19 Energy Capacity 500 Matter Stores 269 Matter Capacity 300 Sight Range 16 Terrain Scan Range 14 Terrain Scan Density 85 Armor Coverage 150 Evasion (%) 41 Recoil Reduction 2 Item Schematics ----------------- None Robot Schematics ------------------ None Fabricated ------------ Nothing Alien Tech Used ----------------- None Achievements -------------- Safety First Challenges ------------ None Game ------ Seed DisruptionAnalysisScanner Manual? 0 Play Time 00:27:11 Cumulative 3.0 hours Start 2024.04.02 @ 09:04:33 End 2024.04.02 @ 09:30:38 Sessions 1 Manual Loads 0 Difficulty Rogue Special Mode None Game No. 4 Rogue 4 Adventurer 0 Explorer 0 Win Type - Total 0 Types 0/0/0/0/0/0/0/0/0 Lore% 2 Gallery% 9 Achievement% 8 Wizard Run 0 Options --------- Layout 1 ASCII 0 Keyboard 0 Movement Arrows Keybinds 0 Fullscreen 1 Font 24/Smallcaps Map View 50x35 Zoom Use 0% Tactical HUD 0 Map Filters NONE Filters NONE Steam 1 RUN: 55f3a11b-d9da-4df6-9cc1-d1da19b5384f